[Event "Live Chess"]
[Site "Chess.com"]
[Date "2024.06.01"]
[Round "-"]
[White "LaupMiths"]
[Black "SvitlanaJ"]
[Result "1-0"]
[WhiteElo "1910"]
[BlackElo "393"]
[TimeControl "300"]
[EndTime "9:15:04 PDT"]
[Termination "LaupMiths won by checkmate"]

1. d4 {[%clk 0:04:56.5]} 1... d5 {[%clk 0:04:56]} 2. c4 {[%clk 0:04:54.3]} 2...
c6 {[%clk 0:04:53.3]} 3. Nf3 {[%clk 0:04:51.3]} 3... Nf6 {[%clk 0:04:51.2]} 4.
Nc3 {[%clk 0:04:49.1]} 4... dxc4 {[%clk 0:04:45.9]} 5. a4 {[%clk 0:04:44.1]}
5... a5 {[%clk 0:04:42.7]} 6. Ne5 {[%clk 0:04:42.4]} 6... e6 {[%clk 0:04:21.4]}
7. Nxc4 {[%clk 0:04:39.2]} 7... Bb4 {[%clk 0:04:08.1]} 8. e3 {[%clk 0:04:37.1]}
8... Ne4 {[%clk 0:04:00.7]} 9. Bd2 {[%clk 0:04:35.3]} 9... O-O {[%clk
0:03:47.9]} 10. f3 {[%clk 0:04:33.1]} 10... Nxc3 {[%clk 0:03:45]} 11. bxc3
{[%clk 0:04:29.5]} 11... Bxc3 {[%clk 0:03:38.3]} 12. Bxc3 {[%clk 0:04:27.1]}
12... Na6 {[%clk 0:03:27.2]} 13. Bd3 {[%clk 0:04:24.1]} 13... c5 {[%clk
0:03:23.5]} 14. O-O {[%clk 0:04:21.2]} 14... cxd4 {[%clk 0:03:11.1]} 15. Bxd4
{[%clk 0:04:18.9]} 15... Nb4 {[%clk 0:03:04.9]} 16. Bb1 {[%clk 0:04:11]} 16...
Qe8 {[%clk 0:02:47.8]} 17. Qe1 {[%clk 0:03:57.5]} 17... Qd8 {[%clk 0:02:23.6]}
18. Qg3 {[%clk 0:03:52.3]} 18... Bd7 {[%clk 0:02:10.5]} 19. Qxg7# {[%clk
0:03:49.5]} 1-0

[Event "Live Chess"]
[Site "Chess.com"]
[Date "2024.06.01"]
[Round "-"]
[White "DoctorMantisTobogganMD"]
[Black "WildMantra69"]
[Result "1-0"]
[WhiteElo "2208"]
[BlackElo "2008"]
[TimeControl "300"]
[EndTime "9:15:08 PDT"]
[Termination "DoctorMantisTobogganMD won by resignation"]

1. e4 {[%clk 0:04:58.4]} 1... e5 {[%clk 0:04:58.7]} 2. Nc3 {[%clk 0:04:55.6]}
2... Nc6 {[%clk 0:04:58]} 3. Bc4 {[%clk 0:04:55.2]} 3... Nf6 {[%clk 0:04:57.3]}
4. d3 {[%clk 0:04:54.5]} 4... Bc5 {[%clk 0:04:56.4]} 5. f4 {[%clk 0:04:53.9]}
5... d6 {[%clk 0:04:55.8]} 6. Nf3 {[%clk 0:04:52]} 6... Ng4 {[%clk 0:04:55.1]}
7. Ng5 {[%clk 0:04:51.2]} 7... O-O {[%clk 0:04:51.8]} 8. f5 {[%clk 0:04:50.4]}
8... h6 {[%clk 0:04:46.8]} 9. Qxg4 {[%clk 0:04:48.2]} 9... hxg5 {[%clk
0:04:44.4]} 10. Bxg5 {[%clk 0:04:47.3]} 10... Qe8 {[%clk 0:04:42.3]} 11. Bh6
{[%clk 0:04:41.9]} 1-0

[Event "Live Chess"]
[Site "Chess.com"]
[Date "2024.06.01"]
[Round "-"]
[White "will-balkwill"]
[Black "degringolade64"]
[Result "0-1"]
[WhiteElo "1077"]
[BlackElo "2040"]
[TimeControl "300"]
[EndTime "9:15:26 PDT"]
[Termination "degringolade64 won by resignation"]

1. e4 {[%clk 0:04:59.4]} 1... e5 {[%clk 0:04:56.7]} 2. Nf3 {[%clk 0:04:57.6]}
2... Nc6 {[%clk 0:04:55.6]} 3. c3 {[%clk 0:04:53.8]} 3... d5 {[%clk 0:04:52.1]}
4. Qa4 {[%clk 0:04:51.9]} 4... Bd7 {[%clk 0:04:48.3]} 5. exd5 {[%clk 0:04:47.7]}
5... Nd4 {[%clk 0:04:47.3]} 6. Qd1 {[%clk 0:04:45.2]} 6... Nxf3+ {[%clk
0:04:44.6]} 7. Qxf3 {[%clk 0:04:45.1]} 7... Nf6 {[%clk 0:04:43.5]} 8. d4 {[%clk
0:04:33.4]} 8... exd4 {[%clk 0:04:32]} 9. cxd4 {[%clk 0:04:23.1]} 9... Bb4+
{[%clk 0:04:29.8]} 10. Nc3 {[%clk 0:04:12.5]} 10... Qe7+ {[%clk 0:04:27.3]} 11.
Be2 {[%clk 0:04:03.4]} 11... Bg4 {[%clk 0:04:23.8]} 12. Qe3 {[%clk 0:03:47.5]}
12... Bxe2 {[%clk 0:04:18.3]} 13. Qxe7+ {[%clk 0:03:39.3]} 13... Kxe7 {[%clk
0:04:18.2]} 14. Kxe2 {[%clk 0:03:37.2]} 14... Bxc3 {[%clk 0:04:14.3]} 15. bxc3
{[%clk 0:03:35.9]} 15... Nxd5 {[%clk 0:04:14]} 16. Kd3 {[%clk 0:03:32.8]} 16...
Kd7 {[%clk 0:04:07.7]} 17. Be3 {[%clk 0:03:24]} 17... b5 {[%clk 0:04:05.6]} 18.
Rab1 {[%clk 0:03:18.9]} 18... a6 {[%clk 0:04:03.8]} 19. c4 {[%clk 0:03:10.8]}
19... bxc4+ {[%clk 0:04:01]} 20. Kxc4 {[%clk 0:03:08.9]} 20... Nb6+ {[%clk
0:03:52]} 21. Kd3 {[%clk 0:03:00.8]} 21... Rhe8 {[%clk 0:03:48.1]} 22. Rhc1
{[%clk 0:02:58.5]} 22... f6 {[%clk 0:03:42.3]} 23. Bf4 {[%clk 0:02:50.3]} 23...
Nd5 {[%clk 0:03:39.9]} 24. Bg3 {[%clk 0:02:39.2]} 24... Rab8 {[%clk 0:03:30.5]}
25. Rxb8 {[%clk 0:02:22]} 25... Rxb8 {[%clk 0:03:30.4]} 26. Ke4 {[%clk
0:02:09.6]} 26... Rb5 {[%clk 0:02:56.1]} 27. h3 {[%clk 0:01:43.8]} 27... c6
{[%clk 0:02:54]} 28. Kd3 {[%clk 0:01:21.6]} 28... Nb4+ {[%clk 0:02:28.4]} 29.
Ke4 {[%clk 0:01:11]} 29... Nxa2 {[%clk 0:02:27.2]} 30. Ra1 {[%clk 0:01:06.5]}
30... Ra5 {[%clk 0:02:20.5]} 31. Ke3 {[%clk 0:00:53.4]} 31... Ra4 {[%clk
0:02:06]} 32. f3 {[%clk 0:00:40.2]} 32... Nc3 {[%clk 0:02:03]} 33. Rxa4 {[%clk
0:00:38.2]} 33... Nxa4 {[%clk 0:02:02.9]} 34. Kd3 {[%clk 0:00:34.9]} 34... Nb6
{[%clk 0:01:59.8]} 35. Be1 {[%clk 0:00:32.8]} 35... Nd5 {[%clk 0:01:52.5]} 36.
Ke4 {[%clk 0:00:31.6]} 36... Kd6 {[%clk 0:01:49.9]} 37. Bd2 {[%clk 0:00:30]}
37... g6 {[%clk 0:01:44.4]} 38. Kd3 {[%clk 0:00:28.6]} 38... c5 {[%clk
0:01:37.9]} 39. Kc4 {[%clk 0:00:22.6]} 39... cxd4 {[%clk 0:01:35.6]} 40. Kxd4
{[%clk 0:00:21.7]} 40... Kc6 {[%clk 0:01:29.6]} 41. Kc4 {[%clk 0:00:21]} 41...
Ne7 {[%clk 0:01:24.9]} 42. Kb3 {[%clk 0:00:19.9]} 42... Kb5 {[%clk 0:01:23.3]}
43. Ka3 {[%clk 0:00:18.9]} 43... Nd5 {[%clk 0:01:21.4]} 44. Kb3 {[%clk
0:00:17.8]} 44... a5 {[%clk 0:01:20.8]} 45. Ka3 {[%clk 0:00:17]} 45... a4 {[%clk
0:01:19.9]} 46. Ka2 {[%clk 0:00:15.8]} 46... Kc4 {[%clk 0:01:11.5]} 47. Ka3
{[%clk 0:00:14.7]} 47... Kd3 {[%clk 0:01:08.9]} 48. Bb4 {[%clk 0:00:13.6]} 48...
Nxb4 {[%clk 0:01:06.9]} 49. Kxb4 {[%clk 0:00:12.4]} 49... Ke2 {[%clk 0:01:05.6]}
50. Kxa4 {[%clk 0:00:12.3]} 50... Kf2 {[%clk 0:01:04.5]} 0-1

[Event "Live Chess"]
[Site "Chess.com"]
[Date "2024.06.01"]
[Round "-"]
[White "Leovip"]
[Black "grillage"]
[Result "0-1"]
[WhiteElo "1724"]
[BlackElo "1945"]
[TimeControl "300"]
[EndTime "9:15:32 PDT"]
[Termination "grillage won by resignation"]

1. e4 {[%clk 0:04:56.5]} 1... d5 {[%clk 0:04:58.1]} 2. exd5 {[%clk 0:04:54.3]}
2... Qxd5 {[%clk 0:04:56.3]} 3. Nc3 {[%clk 0:04:53.4]} 3... Qd8 {[%clk 0:04:54]}
4. d4 {[%clk 0:04:50.3]} 4... Nf6 {[%clk 0:04:51.8]} 5. Be3 {[%clk 0:04:48.8]}
5... c6 {[%clk 0:04:48.7]} 6. f3 {[%clk 0:04:47.4]} 6... Bf5 {[%clk 0:04:44.8]}
7. Bc4 {[%clk 0:04:45.8]} 7... e6 {[%clk 0:04:43.1]} 8. Nge2 {[%clk 0:04:42.7]}
8... Bd6 {[%clk 0:04:39.2]} 9. O-O {[%clk 0:04:37.1]} 9... O-O {[%clk 0:04:37]}
10. Bf2 {[%clk 0:04:34.8]} 10... Nbd7 {[%clk 0:04:34.4]} 11. Ng3 {[%clk
0:04:33.5]} 11... Bg6 {[%clk 0:04:32.5]} 12. Bd3 {[%clk 0:04:31.7]} 12... Bxd3
{[%clk 0:04:30.3]} 13. Qxd3 {[%clk 0:04:29.8]} 13... Qc7 {[%clk 0:04:26.2]} 14.
Nce4 {[%clk 0:04:26]} 14... Nxe4 {[%clk 0:04:24.3]} 15. fxe4 {[%clk 0:04:24.6]}
15... Rfd8 {[%clk 0:04:12.7]} 16. Qe2 {[%clk 0:04:19.1]} 16... Bf8 {[%clk
0:03:59.7]} 17. c3 {[%clk 0:04:15.5]} 17... c5 {[%clk 0:03:55.2]} 18. Rad1
{[%clk 0:04:10.3]} 18... cxd4 {[%clk 0:03:53.4]} 19. Rxd4 {[%clk 0:04:07.3]}
19... Bc5 {[%clk 0:03:48.4]} 20. Rd3 {[%clk 0:04:02.8]} 20... Bxf2+ {[%clk
0:03:47.1]} 21. Qxf2 {[%clk 0:03:59.3]} 21... Ne5 {[%clk 0:03:41.7]} 22. Rxd8+
{[%clk 0:03:57]} 22... Rxd8 {[%clk 0:03:40.2]} 23. Ne2 {[%clk 0:03:52.9]} 23...
Rd2 {[%clk 0:03:36.3]} 24. Qe3 {[%clk 0:03:49.2]} 24... Rxb2 {[%clk 0:03:25.7]}
25. Nd4 {[%clk 0:03:46.2]} 25... Rxa2 {[%clk 0:03:20]} 26. Qf4 {[%clk
0:03:43.9]} 26... Ra5 {[%clk 0:02:48.6]} 27. Kh1 {[%clk 0:03:38.6]} 27... Rc5
{[%clk 0:02:32.7]} 28. Nf3 {[%clk 0:03:31]} 28... Nxf3 {[%clk 0:02:29.6]} 29.
Qxc7 {[%clk 0:03:28.3]} 29... Rxc7 {[%clk 0:02:27.4]} 30. Rxf3 {[%clk
0:03:27.4]} 30... a5 {[%clk 0:02:19.4]} 31. h3 {[%clk 0:03:22.2]} 31... e5
{[%clk 0:02:14.3]} 32. Rd3 {[%clk 0:03:16.6]} 32... f6 {[%clk 0:02:12.4]} 33.
Rd5 {[%clk 0:03:15]} 33... b6 {[%clk 0:02:11.1]} 34. Rd8+ {[%clk 0:03:09.3]}
34... Kf7 {[%clk 0:02:09.6]} 35. Rb8 {[%clk 0:03:08.2]} 35... Rc6 {[%clk
0:02:03.2]} 36. c4 {[%clk 0:03:06.6]} 36... a4 {[%clk 0:01:59.6]} 37. Ra8 {[%clk
0:03:05.3]} 37... Rxc4 {[%clk 0:01:58.1]} 38. Ra6 {[%clk 0:03:00.6]} 38... b5
{[%clk 0:01:56]} 39. Rb6 {[%clk 0:02:59.7]} 39... Rb4 {[%clk 0:01:54.6]} 40. g4
{[%clk 0:02:55.2]} 40... a3 {[%clk 0:01:52.4]} 41. Kg2 {[%clk 0:02:50.9]} 41...
a2 {[%clk 0:01:50.7]} 42. Ra6 {[%clk 0:02:49.8]} 42... Ra4 {[%clk 0:01:50]} 0-1

[Event "Live Chess"]
[Site "Chess.com"]
[Date "2024.06.01"]
[Round "-"]
[White "FlyingChessKestrel13"]
[Black "nigelst"]
[Result "1-0"]
[WhiteElo "2121"]
[BlackElo "1764"]
[TimeControl "300"]
[EndTime "9:15:36 PDT"]
[Termination "FlyingChessKestrel13 won by resignation"]

1. e4 {[%clk 0:04:56.9]} 1... c6 {[%clk 0:04:59.1]} 2. d4 {[%clk 0:04:54.8]}
2... d5 {[%clk 0:04:58.6]} 3. exd5 {[%clk 0:04:53.6]} 3... cxd5 {[%clk
0:04:55.9]} 4. c4 {[%clk 0:04:52.7]} 4... Nf6 {[%clk 0:04:52.9]} 5. Nc3 {[%clk
0:04:51.1]} 5... Nc6 {[%clk 0:04:46.9]} 6. Nf3 {[%clk 0:04:50.1]} 6... Bg4
{[%clk 0:04:43.5]} 7. c5 {[%clk 0:04:48.7]} 7... e6 {[%clk 0:04:41.8]} 8. Bb5
{[%clk 0:04:46.8]} 8... Be7 {[%clk 0:04:39.5]} 9. O-O {[%clk 0:04:45.7]} 9...
O-O {[%clk 0:04:31.5]} 10. Bxc6 {[%clk 0:04:44.2]} 10... bxc6 {[%clk 0:04:27.7]}
11. Qd3 {[%clk 0:04:42.4]} 11... Bxf3 {[%clk 0:04:18.2]} 12. Qxf3 {[%clk
0:04:40.8]} 12... Re8 {[%clk 0:04:07.6]} 13. Bf4 {[%clk 0:04:37.6]} 13... Nd7
{[%clk 0:03:59.5]} 14. Rfe1 {[%clk 0:04:30.1]} 14... Bg5 {[%clk 0:03:53.1]} 15.
Bg3 {[%clk 0:04:26.4]} 15... Bd2 {[%clk 0:03:48.7]} 16. Red1 {[%clk 0:04:25]}
16... Bxc3 {[%clk 0:03:47.6]} 17. Qxc3 {[%clk 0:04:23.6]} 17... Nf6 {[%clk
0:03:43.5]} 18. f3 {[%clk 0:04:21.5]} 18... Nh5 {[%clk 0:03:36.4]} 19. Bd6
{[%clk 0:04:18.2]} 19... f6 {[%clk 0:03:27.8]} 20. b4 {[%clk 0:04:11.3]} 20...
g5 {[%clk 0:03:01.8]} 21. a4 {[%clk 0:04:07.2]} 21... Nf4 {[%clk 0:02:57.2]} 22.
Bxf4 {[%clk 0:04:05.5]} 22... gxf4 {[%clk 0:02:56.1]} 23. b5 {[%clk 0:04:04]}
23... Qc7 {[%clk 0:02:47.5]} 24. Rdb1 {[%clk 0:04:00.9]} 24... Rab8 {[%clk
0:02:44.2]} 25. Rb2 {[%clk 0:03:53.4]} 25... e5 {[%clk 0:02:42.9]} 26. Rab1
{[%clk 0:03:51.5]} 26... exd4 {[%clk 0:02:27.3]} 27. Qxd4 {[%clk 0:03:49.8]}
27... Qe5 {[%clk 0:02:26.2]} 28. Qxe5 {[%clk 0:03:42.8]} 28... fxe5 {[%clk
0:02:24.2]} 29. b6 {[%clk 0:03:38.5]} 29... axb6 {[%clk 0:02:22.1]} 30. cxb6
{[%clk 0:03:37.8]} 30... e4 {[%clk 0:01:56.5]} 31. a5 {[%clk 0:03:32.7]} 31...
e3 {[%clk 0:01:52.2]} 32. Kf1 {[%clk 0:03:31.6]} 32... d4 {[%clk 0:01:50.6]} 33.
Ke2 {[%clk 0:03:30.1]} 33... c5 {[%clk 0:01:43.4]} 34. a6 {[%clk 0:03:28]} 34...
c4 {[%clk 0:01:42.4]} 35. b7 {[%clk 0:03:21.2]} 35... d3+ {[%clk 0:01:41]} 36.
Kf1 {[%clk 0:03:19.1]} 36... c3 {[%clk 0:01:36.9]} 37. a7 {[%clk 0:03:14.8]}
37... cxb2 {[%clk 0:01:24]} 38. axb8=Q {[%clk 0:03:03.2]} 38... Rxb8 {[%clk
0:01:21.4]} 39. Rxb2 {[%clk 0:03:02.1]} 39... Kf7 {[%clk 0:01:14.1]} 40. Rb3
{[%clk 0:03:00.8]} 40... d2 {[%clk 0:01:04.7]} 41. Ke2 {[%clk 0:02:59.7]} 41...
Ke7 {[%clk 0:01:02.3]} 42. g3 {[%clk 0:02:57.2]} 42... fxg3 {[%clk 0:00:58.7]}
43. hxg3 {[%clk 0:02:52.3]} 43... Kd7 {[%clk 0:00:57.6]} 44. Rxe3 {[%clk
0:02:50.8]} 44... Kc7 {[%clk 0:00:52.2]} 45. Kxd2 {[%clk 0:02:47.4]} 45... Rd8+
{[%clk 0:00:45.6]} 46. Ke2 {[%clk 0:02:45.1]} 46... Kxb7 {[%clk 0:00:35]} 47.
Re7+ {[%clk 0:02:43.5]} 47... Kc6 {[%clk 0:00:33.7]} 48. Rxh7 {[%clk 0:02:42.3]}
48... Kd6 {[%clk 0:00:33.2]} 49. Rh5 {[%clk 0:02:41.2]} 49... Ke6 {[%clk
0:00:31.8]} 50. g4 {[%clk 0:02:40.5]} 50... Kf6 {[%clk 0:00:30.7]} 51. Kf2
{[%clk 0:02:40]} 51... Kg6 {[%clk 0:00:29.1]} 52. Kg3 {[%clk 0:02:39.2]} 52...
Rd1 {[%clk 0:00:26.8]} 53. Ra5 {[%clk 0:02:37]} 53... Rg1+ {[%clk 0:00:24.4]}
54. Kf4 {[%clk 0:02:35.5]} 54... Rf1 {[%clk 0:00:24]} 55. Ra6+ {[%clk
0:02:34.2]} 55... Kf7 {[%clk 0:00:23]} 56. g5 {[%clk 0:02:33.4]} 56... Kg7
{[%clk 0:00:22]} 57. Kg4 {[%clk 0:02:32.7]} 57... Rg1+ {[%clk 0:00:20.1]} 58.
Kf5 {[%clk 0:02:31.6]} 58... Rf1 {[%clk 0:00:19.4]} 59. f4 {[%clk 0:02:30.8]}
59... Kf7 {[%clk 0:00:18.3]} 60. Ra7+ {[%clk 0:02:29.6]} 60... Kg8 {[%clk
0:00:17.3]} 61. g6 {[%clk 0:02:28.7]} 61... Rg1 {[%clk 0:00:14.9]} 62. Kf6
{[%clk 0:02:26.9]} 62... Rxg6+ {[%clk 0:00:13.2]} 63. Kxg6 {[%clk 0:02:25.8]}
1-0

[Event "Live Chess"]
[Site "Chess.com"]
[Date "2024.06.01"]
[Round "-"]
[White "Bazzza132"]
[Black "NAZRIZ1977"]
[Result "0-1"]
[WhiteElo "1711"]
[BlackElo "2138"]
[TimeControl "300"]
[EndTime "9:15:38 PDT"]
[Termination "NAZRIZ1977 won by resignation"]

1. d4 {[%clk 0:04:58]} 1... Nf6 {[%clk 0:04:58.9]} 2. c4 {[%clk 0:04:56.9]} 2...
c5 {[%clk 0:04:58.1]} 3. d5 {[%clk 0:04:55.3]} 3... b5 {[%clk 0:04:57.2]} 4.
cxb5 {[%clk 0:04:53]} 4... a6 {[%clk 0:04:56.4]} 5. e3 {[%clk 0:04:52]} 5... g6
{[%clk 0:04:55]} 6. Nf3 {[%clk 0:04:49.5]} 6... Bg7 {[%clk 0:04:53.7]} 7. Nc3
{[%clk 0:04:47]} 7... O-O {[%clk 0:04:52.2]} 8. Bd3 {[%clk 0:04:33.4]} 8... d6
{[%clk 0:04:51]} 9. h4 {[%clk 0:04:27.8]} 9... h5 {[%clk 0:04:48.2]} 10. Ng5
{[%clk 0:04:21.8]} 10... axb5 {[%clk 0:04:46.6]} 11. Bxb5 {[%clk 0:04:15.3]}
11... Ba6 {[%clk 0:04:39.5]} 12. Bxa6 {[%clk 0:04:08.1]} 12... Nxa6 {[%clk
0:04:38.5]} 13. a3 {[%clk 0:04:03.7]} 13... Qb6 {[%clk 0:04:34.3]} 14. Qc2
{[%clk 0:04:00.5]} 14... Rfb8 {[%clk 0:04:33]} 15. Rb1 {[%clk 0:03:55.8]} 15...
Qb3 {[%clk 0:04:25.3]} 16. Qxb3 {[%clk 0:03:46]} 16... Rxb3 {[%clk 0:04:23.8]}
17. O-O {[%clk 0:03:30.5]} 17... Rab8 {[%clk 0:04:20.5]} 18. Nge4 {[%clk
0:03:14.5]} 18... Nxe4 {[%clk 0:04:11.7]} 19. Nxe4 {[%clk 0:03:12.2]} 19... Rxa3
{[%clk 0:04:10.8]} 20. bxa3 {[%clk 0:02:59.4]} 20... Rxb1 {[%clk 0:04:09.4]} 21.
Bd2 {[%clk 0:02:54.9]} 21... Rb3 {[%clk 0:04:02.8]} 22. Ra1 {[%clk 0:02:48.6]}
22... Bxa1 {[%clk 0:04:01]} 0-1

[Event "Live Chess"]
[Site "Chess.com"]
[Date "2024.06.01"]
[Round "-"]
[White "Countrylife123"]
[Black "CheckThis4"]
[Result "0-1"]
[WhiteElo "1743"]
[BlackElo "2692"]
[TimeControl "300"]
[EndTime "9:15:39 PDT"]
[Termination "CheckThis4 won by checkmate"]

1. d4 {[%clk 0:04:53.7]} 1... Nf6 {[%clk 0:04:57.2]} 2. c4 {[%clk 0:04:51.9]}
2... g6 {[%clk 0:04:55.9]} 3. Nc3 {[%clk 0:04:49.4]} 3... d5 {[%clk 0:04:54.5]}
4. e3 {[%clk 0:04:45.5]} 4... Bg7 {[%clk 0:04:52.1]} 5. h3 {[%clk 0:04:44]} 5...
O-O {[%clk 0:04:50.1]} 6. cxd5 {[%clk 0:04:42.1]} 6... Nxd5 {[%clk 0:04:48.6]}
7. e4 {[%clk 0:04:36.8]} 7... Nxc3 {[%clk 0:04:44.8]} 8. bxc3 {[%clk 0:04:35.6]}
8... c5 {[%clk 0:04:44.3]} 9. Nf3 {[%clk 0:04:25.6]} 9... Nc6 {[%clk 0:04:42]}
10. Be3 {[%clk 0:04:05.2]} 10... Qa5 {[%clk 0:04:38.4]} 11. Qd2 {[%clk
0:03:49.4]} 11... cxd4 {[%clk 0:04:33.8]} 12. Nxd4 {[%clk 0:03:30.9]} 12... Rd8
{[%clk 0:04:19.5]} 13. Be2 {[%clk 0:02:35.2]} 13... Nxd4 {[%clk 0:04:05.3]} 14.
Bxd4 {[%clk 0:02:27.7]} 14... e5 {[%clk 0:03:50.3]} 15. O-O-O {[%clk 0:01:44.4]}
15... exd4 {[%clk 0:03:43.6]} 16. cxd4 {[%clk 0:01:43.4]} 16... Qa3+ {[%clk
0:03:36]} 17. Qb2 {[%clk 0:01:35.7]} 17... Qxb2+ {[%clk 0:03:32.9]} 18. Kxb2
{[%clk 0:01:34.1]} 18... Rxd4 {[%clk 0:03:29.6]} 19. Rxd4 {[%clk 0:00:56.8]}
19... Bxd4+ {[%clk 0:03:29.5]} 20. Kc1 {[%clk 0:00:50.8]} 20... Bxf2 {[%clk
0:03:27.2]} 21. Rf1 {[%clk 0:00:49.7]} 21... Be3+ {[%clk 0:03:25.9]} 22. Kd1
{[%clk 0:00:39.4]} 22... Be6 {[%clk 0:03:25.8]} 23. a3 {[%clk 0:00:30]} 23...
Rc8 {[%clk 0:03:22.2]} 24. Rf3 {[%clk 0:00:19.2]} 24... Rc1# {[%clk 0:03:17.4]}
0-1

[Event "Live Chess"]
[Site "Chess.com"]
[Date "2024.06.01"]
[Round "-"]
[White "Eva3337"]
[Black "Frankie_Badacsonyi"]
[Result "0-1"]
[WhiteElo "1127"]
[BlackElo "2455"]
[TimeControl "300"]
[EndTime "9:15:54 PDT"]
[Termination "Frankie_Badacsonyi won by resignation"]

1. e4 {[%clk 0:04:54.3]} 1... g6 {[%clk 0:04:59.1]} 2. Nf3 {[%clk 0:04:51.7]}
2... Bg7 {[%clk 0:04:58.5]} 3. c3 {[%clk 0:04:50.4]} 3... c6 {[%clk 0:04:57.4]}
4. Bd3 {[%clk 0:04:49.1]} 4... d5 {[%clk 0:04:56.6]} 5. e5 {[%clk 0:04:44.5]}
5... Bg4 {[%clk 0:04:54.1]} 6. O-O {[%clk 0:04:21.5]} 6... e6 {[%clk 0:04:52.3]}
7. Re1 {[%clk 0:04:15]} 7... Nd7 {[%clk 0:04:50.7]} 8. Be2 {[%clk 0:04:12.8]}
8... Bxf3 {[%clk 0:04:48.2]} 9. Bxf3 {[%clk 0:04:11.8]} 9... Nxe5 {[%clk
0:04:47.6]} 10. d4 {[%clk 0:04:06.7]} 10... Nxf3+ {[%clk 0:04:46.8]} 11. Qxf3
{[%clk 0:04:05.6]} 11... Ne7 {[%clk 0:04:45.1]} 12. Qh3 {[%clk 0:03:58]} 12...
O-O {[%clk 0:04:42.9]} 13. Bh6 {[%clk 0:03:55.8]} 13... Nf5 {[%clk 0:04:40.8]}
14. Bxg7 {[%clk 0:03:53.5]} 14... Kxg7 {[%clk 0:04:40.7]} 15. Re5 {[%clk
0:03:47.9]} 15... Qh4 {[%clk 0:04:36.3]} 16. Qf3 {[%clk 0:03:42.6]} 16... Qf6
{[%clk 0:04:32.1]} 17. Nd2 {[%clk 0:03:33.3]} 17... Nd6 {[%clk 0:04:30.6]} 18.
Rae1 {[%clk 0:03:27.1]} 18... Qxf3 {[%clk 0:04:29.3]} 19. Nxf3 {[%clk
0:03:22.4]} 19... Rfc8 {[%clk 0:04:28.1]} 20. Rd1 {[%clk 0:02:59.9]} 20... c5
{[%clk 0:04:26.7]} 21. h3 {[%clk 0:02:53.4]} 21... cxd4 {[%clk 0:04:24.7]} 22.
Rxd4 {[%clk 0:02:51.1]} 22... Rc4 {[%clk 0:04:22.2]} 23. Rxc4 {[%clk 0:02:47.2]}
23... Nxc4 {[%clk 0:04:22.1]} 24. Nd4 {[%clk 0:02:39.2]} 24... Nxe5 {[%clk
0:04:20.9]} 0-1

[Event "Live Chess"]
[Site "Chess.com"]
[Date "2024.06.01"]
[Round "-"]
[White "DukeBG"]
[Black "raimundklein"]
[Result "0-1"]
[WhiteElo "479"]
[BlackElo "1642"]
[TimeControl "300"]
[EndTime "9:16:00 PDT"]
[Termination "raimundklein won on time"]

1. e4 {[%clk 0:04:56.4]} 1... c6 {[%clk 0:04:58.9]} 2. d4 {[%clk 0:04:53.6]}
2... d5 {[%clk 0:04:58.1]} 3. exd5 {[%clk 0:04:49.8]} 3... cxd5 {[%clk 0:04:58]}
4. Bf4 {[%clk 0:04:46.1]} 4... Nc6 {[%clk 0:04:56.4]} 5. Nf3 {[%clk 0:04:39.1]}
5... Bg4 {[%clk 0:04:53.8]} 6. h3 {[%clk 0:04:30.9]} 6... Bh5 {[%clk 0:04:51.7]}
7. g4 {[%clk 0:04:28.8]} 7... Bg6 {[%clk 0:04:50.8]} 8. h4 {[%clk 0:04:21.8]}
8... Be4 {[%clk 0:04:48.8]} 9. Ng5 {[%clk 0:04:05.8]} 9... Bxh1 {[%clk
0:04:44.6]} 10. Qd3 {[%clk 0:03:40.1]} 10... Nf6 {[%clk 0:04:39.3]} 11. Qh3
{[%clk 0:03:30.6]} 11... Be4 {[%clk 0:04:35.9]} 12. Nxe4 {[%clk 0:03:21]} 12...
Nxe4 {[%clk 0:04:35.8]} 13. g5 {[%clk 0:03:02.8]} 13... e6 {[%clk 0:04:34.1]}
14. a4 {[%clk 0:02:40.4]} 14... Bd6 {[%clk 0:04:32.6]} 15. Be3 {[%clk
0:02:23.3]} 15... Qa5+ {[%clk 0:04:20.1]} 16. c3 {[%clk 0:02:15.7]} 16... a6
{[%clk 0:04:10.2]} 17. Nd2 {[%clk 0:01:51.5]} 17... Nxd2 {[%clk 0:04:04.2]} 18.
Bxd2 {[%clk 0:01:46.8]} 18... b5 {[%clk 0:04:01.6]} 19. c4 {[%clk 0:01:38]}
19... Bb4 {[%clk 0:03:55.2]} 20. cxd5 {[%clk 0:01:20.8]} 20... Bxd2+ {[%clk
0:03:52.2]} 21. Kd1 {[%clk 0:01:16.8]} 21... exd5 {[%clk 0:03:49.3]} 22. Qd3
{[%clk 0:00:27.6]} 22... O-O {[%clk 0:03:38.4]} 0-1

[Event "Live Chess"]
[Site "Chess.com"]
[Date "2024.06.01"]
[Round "-"]
[White "gunslinger222"]
[Black "Tilbs_12"]
[Result "1-0"]
[WhiteElo "2271"]
[BlackElo "1662"]
[TimeControl "300"]
[EndTime "9:16:08 PDT"]
[Termination "gunslinger222 won by resignation"]

1. d4 {[%clk 0:04:57.9]} 1... d5 {[%clk 0:04:58.1]} 2. c4 {[%clk 0:04:56.8]}
2... e6 {[%clk 0:04:56.7]} 3. Nc3 {[%clk 0:04:55.9]} 3... Nf6 {[%clk 0:04:56.1]}
4. cxd5 {[%clk 0:04:55.3]} 4... exd5 {[%clk 0:04:55.2]} 5. Bg5 {[%clk 0:04:55]}
5... Be7 {[%clk 0:04:54]} 6. e3 {[%clk 0:04:54.3]} 6... Bf5 {[%clk 0:04:52.6]}
7. Qb3 {[%clk 0:04:50.6]} 7... b6 {[%clk 0:04:30.1]} 8. Bxf6 {[%clk 0:04:42.9]}
8... Bxf6 {[%clk 0:04:26.6]} 9. Qxd5 {[%clk 0:04:42.4]} 9... O-O {[%clk
0:04:17.3]} 10. Qxa8 {[%clk 0:04:36.5]} 10... c6 {[%clk 0:04:16.5]} 11. Qxa7
{[%clk 0:04:33.4]} 11... Qd6 {[%clk 0:04:13]} 12. Nf3 {[%clk 0:04:15.5]} 1-0